bitfinex/quotes_SOLUSD_20250611
["timestamp","ask_amount","ask_price","bid_price","bid_amount"]
[1749617953780,6.5492,164.95,164.86,6.62519381]
[1749617954101,26.0,164.92,164.85,32.88644581]
[1749617954411,26.0,164.92,164.85,24.72]
[1749617954706,26.0,164.92,164.83,24.72]
[1749617956072,26.0,164.92,164.84,18.79181043]
[1749617956289,26.0,164.92,164.84,25.41700424]
[1749617956595,11.8492,164.95,164.85,8.16679381]
[1749617956805,26.0,164.92,164.86,24.72]
[1749617956977,11.8492,164.95,164.86,24.72]
[1749617957595,26.0,164.92,164.86,24.72]
[1749617965308,26.0,164.92,164.86,35.06369802]
[1749617973818,26.0,164.92,164.86,124.96369802]
[1749617975518,26.0,164.92,164.86,114.62]
[1749617975721,1.3,164.91,164.86,89.9]
[1749617975929,1.3,164.91,164.84,122.78644581]
[1749617976231,26.0,164.92,164.84,133.13014383]
[1749617976920,26.0,164.92,164.84,122.78644581]
[1749617977098,26.0,164.92,164.84,133.13014383]
[1749617978119,26.0,164.92,164.85,24.72]
[1749617990233,26.0,164.92,164.86,25.4132589]
[1749617991615,26.0,164.92,164.86,115.3132589]
[1749617992118,0.7,164.91,164.86,115.3132589]
[1749617992439,26.0,164.92,164.86,115.3132589]
[1749617994441,26.0,164.92,164.86,108.69181043]
[1749617995232,26.0,164.92,164.86,115.3132589]
[1749617998550,26.0,164.92,164.87,24.7]
[1749618000761,5.3,164.95,164.89,6.62144847]
[1749618000928,13.387,165.0,164.9,31.32144847]
[1749618001146,13.387,165.0,164.91,6.62144847]
[1749618001332,26.0,164.97,164.91,6.62144847]
[1749618001546,13.387,165.0,164.91,6.62144847]
[1749618001761,13.387,165.0,164.9,114.6]
[1749618001963,1.5673,164.95,164.84,0.14216157]
[1749618002260,0.14216157,164.94,164.83,43.34964886]
[1749618002964,0.14216157,164.94,164.81,24.7]
[1749618002965,26.0,164.91,164.81,24.7]
[1749618003172,31.28,164.91,164.81,24.7]
[1749618004360,26.0,164.87,164.78,13.00857787]
[1749618004538,26.0,164.87,164.79,24.7]
[1749618005163,26.0,164.89,164.8,18.79181043]
[1749618005553,26.0,164.89,164.8,43.49181043]
[1749618007366,0.6,164.88,164.8,43.49181043]
[1749618011076,0.6,164.88,164.8,24.7]
[1749618013982,0.6,164.88,164.79,35.05148936]
[1749618014371,0.6,164.88,164.8,18.79181043]
[1749618014771,0.6,164.88,164.8,29.14329979]
[1749618018270,0.6,164.88,164.8,119.04329979]
[1749618019292,0.6,164.88,164.8,108.69181043]
[1749618022590,26.0,164.87,164.8,89.9]
[1749618024172,26.0,164.87,164.78,1.5996]
[1749618024991,0.14216157,164.86,164.76,89.9]
[1749618025592,0.14216157,164.84,164.74,91.4191]
[1749618025780,26.14216157,164.84,164.74,1.5191]
[1749618025985,26.0,164.82,164.73,89.9]
[1749618026195,26.0,164.82,164.72,159.24964886]
[1749618026377,1.6418,164.81,164.72,159.24964886]
[1749618028279,1.6418,164.81,164.72,134.54964886]
[1749618028616,1.6418,164.81,164.72,140.6]
[1749618028773,1.6418,164.81,164.73,4.51798331]
[1749618028978,1.6418,164.81,164.74,4.51798331]
[1749618029184,1.6418,164.81,164.72,140.6]
[1749618029496,1.6418,164.81,164.73,4.51796921]
[1749618029794,1.6418,164.81,164.74,4.51823367]
[1749618029972,1.6418,164.81,164.75,4.51823367]
[1749618030176,1.6418,164.81,164.76,4.51823367]
[1749618030376,1.6418,164.81,164.7,160.78874886]
[1749618030593,1.6418,164.81,164.71,4.51858021]
[1749618030778,1.6418,164.81,164.72,4.51861085]
[1749618030996,1.6418,164.81,164.73,4.51861024]
[1749618031196,1.6418,164.81,164.74,4.51861024]
[1749618031492,0.14216157,164.8,164.75,4.51861024]
[1749618031693,0.14216157,164.8,164.76,4.51864839]
[1749618031884,0.14216157,164.8,164.77,4.51864839]
[1749618032086,0.14216157,164.8,164.78,4.51879038]
[1749618032286,26.0,164.76,164.69,89.9]
[1749618032601,26.0,164.76,164.68,98.06644581]
[1749618032796,26.0,164.76,164.68,89.9]
[1749618034188,26.0,164.76,164.68,114.62]
[1749618038411,0.7,164.75,164.68,114.62]
[1749618038983,26.0,164.76,164.68,114.62]
[1749618040307,26.0,164.76,164.69,18.79181043]
[1749618040804,6.1732,164.79,164.7,35.07148936]
[1749618041007,1.6418,164.81,164.71,29.14329979]
[1749618041192,5.28,164.82,164.74,10.35148936]
[1749618041399,5.28,164.82,164.74,35.07148936]
[1749618041708,31.28,164.82,164.74,24.72]
[1749618041910,5.28,164.82,164.74,24.72]
[1749618042210,26.0,164.8,164.74,24.72]
[1749618043410,5.28,164.82,164.74,35.07148936]
[1749618044115,0.7,164.81,164.74,35.07148936]
[1749618045008,0.7,164.81,164.74,24.72]
[1749618045413,0.7,164.81,164.73,1.6628]
[1749618045610,0.7,164.81,164.69,1.62]
[1749618045611,26.0,164.79,164.69,1.62]
[1749618045913,0.7,164.81,164.68,43.36964886]
[1749618045914,27.5903,164.78,164.68,43.36964886]
[1749618046505,27.5903,164.78,164.68,0.14216157]
[1749618046698,27.5903,164.78,164.68,24.86216157]
[1749618050420,27.5903,164.78,164.67,43.36964886]
[1749618050914,27.5903,164.78,164.67,18.64964886]
[1749618051130,6.2953,164.77,164.67,43.36964886]
[1749618054823,6.2953,164.77,164.67,18.64964886]
[1749618057454,26.0,164.74,164.67,18.64964886]
[1749618057605,26.0,164.74,164.67,108.54964886]
[1749618057806,26.0,164.74,164.66,89.9]
[1749618060411,26.0,164.74,164.67,18.79181043]
[1749618060922,26.0,164.74,164.66,89.9]
[1749618061421,26.0,164.74,164.67,18.79181043]
[1749618061623,5.28,164.79,164.71,11.87828936]
[1749618061943,5.28,164.79,164.72,35.21365093]
[1749618062409,31.28,164.79,164.72,35.21365093]
[1749618062808,5.28,164.79,164.72,35.21365093]
[1749618063020,5.28,164.79,164.74,10.49365093]
[1749618063228,5.28,164.79,164.76,10.35148936]
[1749618063535,26.0,164.82,164.76,35.07148936]
[1749618063708,6.5784,164.85,164.76,35.07148936]
[1749618063913,26.0,164.83,164.76,35.07148936]
[1749618064236,26.0,164.85,164.76,24.72]
[1749618064730,6.7975,164.86,164.76,24.72]
[1749618064913,26.0,164.85,164.76,35.07148936]
[1749618065229,26.0,164.83,164.73,10.35148936]
[1749618065436,26.0,164.83,164.72,8.16644581]
[1749618065437,26.0,164.83,164.75,24.72]
[1749618066721,6.93966157,164.86,164.75,24.72]
[1749618066919,26.0,164.85,164.75,35.07148936]
[1749618068313,0.7,164.84,164.75,35.07148936]
[1749618068514,0.7,164.84,164.75,114.62]
[1749618070239,0.7,164.84,164.75,89.9]
[1749618071621,26.0,164.83,164.75,89.9]
[1749618072128,26.0,164.83,164.73,24.72]
[1749618072129,6.5835,164.82,164.73,24.72]
[1749618073520,26.0,164.79,164.72,118.90113822]
[1749618073837,26.0,164.79,164.73,24.72]
[1749618075335,26.0,164.79,164.73,35.07148936]
[1749618076446,26.0,164.79,164.73,24.72]
[1749618076649,26.0,164.79,164.73,35.07148936]
[1749618076846,13.2224,164.86,164.76,10.35148936]
[1749618077142,26.0,164.83,164.76,35.07148936]
[1749618077717,13.2224,164.86,164.76,35.07148936]
[1749618077919,26.0,164.83,164.76,35.07148936]
[1749618078323,26.0,164.83,164.76,24.72]
[1749618078545,26.0,164.83,164.74,24.7]
[1749618079451,26.0,164.83,164.74,35.05148936]
[1749618079643,26.0,164.83,164.76,18.79181043]
[1749618080939,26.0,164.83,164.76,29.14329979]
[1749618082553,26.0,164.83,164.76,18.79181043]
[1749618082942,26.0,164.83,164.72,89.9]
[1749618083149,26.14216157,164.82,164.71,20.17644886]
[1749618083331,26.14216157,164.82,164.71,30.52793822]
[1749618083527,26.14216157,164.82,164.71,55.22793822]
[1749618085252,26.14216157,164.82,164.71,20.17644886]
[1749618085452,26.14216157,164.82,164.71,44.87644886]
[1749618086425,26.14216157,164.82,164.71,134.77644886]
[1749618087237,26.14216157,164.82,164.71,145.12793822]
[1749618088133,31.42216157,164.82,164.71,145.12793822]
[1749618090151,31.42216157,164.82,164.71,134.77644886]
[1749618090445,26.0,164.78,164.69,89.9]
[1749618090751,26.0,164.74,164.67,1.6425]
[1749618092245,26.0,164.74,164.65,114.6]
[1749618092461,32.3005,164.74,164.64,89.9]
[1749618095031,26.0,164.7,164.63,1.616]
[1749618096335,26.0,164.7,164.61,24.72]
[1749618099750,26.0,164.7,164.6,18.64964886]
[1749618100141,26.0,164.7,164.6,43.36964886]
[1749618100539,26.0,164.7,164.6,24.72]
[1749618100855,26.0,164.7,164.59,26.2536]
[1749618101049,26.0,164.7,164.59,121.04751907]
[1749618101946,26.0,164.7,164.6,24.72]
[1749618103271,26.0,164.7,164.59,116.1536]
[1749618104334,0.14216157,164.69,164.59,1.5336]
[1749618104541,6.0546,164.68,164.59,1.5336]
[1749618108950,26.0,164.65,164.59,1.5336]
[1749618109356,26.0,164.65,164.57,89.9]
[1749618109846,26.0,164.65,164.56,43.36964886]
[1749618110170,26.0,164.65,164.56,18.64964886]
[1749618111976,32.0546,164.68,164.57,0.14216157]
[1749618112178,32.0546,164.68,164.58,18.64964886]
[1749618112179,37.3346,164.68,164.58,18.64964886]
[1749618112344,37.3346,164.68,164.59,24.72]
[1749618114549,37.3346,164.68,164.6,18.64964886]
[1749618118049,5.28,164.68,164.61,0.14216157]
[1749618118257,1.5019,164.76,164.64,18.64964886]
[1749618118452,13.2521,164.76,164.65,0.14216157]
[1749618118649,39.2521,164.76,164.65,0.14216157]
[1749618121890,0.14216157,164.75,164.64,18.64964886]
[1749618123256,0.14216157,164.75,164.64,29.00113822]
[1749618124052,0.14216157,164.75,164.64,18.64964886]
[1749618124455,0.14216157,164.72,164.63,26.0]
[1749618124683,0.14216157,164.72,164.62,1.5748]
[1749618125669,26.0,164.73,164.64,0.14216157]
[1749618125857,13.39426157,164.76,164.64,0.14216157]
[1749618125858,13.2521,164.76,164.65,44.64964886]
[1749618126765,26.0,164.75,164.65,44.64964886]
[1749618128376,26.0,164.75,164.65,69.36964886]
[1749618128582,26.0,164.75,164.66,0.14216157]
[1749618129486,13.2521,164.76,164.69,18.64964886]
[1749618129487,5.28,164.76,164.69,18.64964886]
[1749618129695,5.28,164.83,164.73,18.64964886]
[1749618130361,0.14216157,164.82,164.73,26.0]
[1749618130561,0.14216157,164.82,164.7,43.8156782]
[1749618130562,0.14216157,164.82,164.71,44.79181043]
[1749618130780,0.14216157,164.82,164.71,44.64964886]
[1749618130982,26.0,164.8,164.71,44.64964886]
[1749618131501,18.79181043,164.82,164.71,26.0]
[1749618131664,18.79181043,164.82,164.7,24.72]
[1749618131863,26.0,164.79,164.7,24.72]
[1749618133778,26.0,164.74,164.67,18.64964886]
[1749618134482,26.0,164.74,164.68,0.14216157]
[1749618134682,26.0,164.74,164.67,18.64964886]
[1749618135867,26.0,164.74,164.65,26.3773]
[1749618136067,26.0,164.74,164.66,18.64964886]
[1749618136279,31.28,164.74,164.65,1.6573]
[1749618139980,31.28,164.74,164.64,18.64964886]
[1749618140182,0.14216157,164.73,164.63,18.64964886]
[1749618140695,0.14216157,164.73,164.62,6.3444]
[1749618141000,0.14216157,164.73,164.61,26.3339]
[1749618141001,26.0,164.7,164.61,1.6139]
[1749618141189,26.0,164.66,164.58,96.3226]
[1749618141500,26.0,164.66,164.59,18.64964886]
[1749618145095,26.0,164.66,164.6,0.14216157]
[1749618145491,34.1497,164.69,164.61,18.64964886]
[1749618145687,7.6033,164.73,164.62,0.14216157]
[1749618145893,5.28,164.72,164.61,108.54964886]
[1749618146192,5.28,164.72,164.59,0.14216157]
[1749618146193,26.0,164.68,164.59,0.14216157]
[1749618146387,26.0,164.68,164.6,18.64964886]
[1749618146908,26.0,164.69,164.6,18.64964886]
[1749618148287,26.0,164.69,164.6,29.00113822]
[1749618148489,26.0,164.69,164.6,18.64964886]
[1749618155215,5.28,164.72,164.61,0.14216157]
[1749618155408,26.0,164.69,164.62,18.64964886]
[1749618156295,26.0,164.69,164.62,29.00113822]
[1749618158508,7.6033,164.73,164.63,35.08598884]
[1749618158702,26.0,164.7,164.65,18.64964886]
[1749618161220,26.0,164.7,164.64,18.64964886]
[1749618161401,26.0,164.7,164.63,89.9]
[1749618163316,26.0,164.7,164.61,35.09148936]
[1749618163317,26.0,164.7,164.62,18.64964886]
[1749618163902,26.0,164.68,164.62,18.64964886]
[1749618168425,26.0,164.68,164.62,24.74]
[1749618172517,26.0,164.68,164.62,24.72]
[1749618173612,5.28,164.71,164.62,24.72]
[1749618173613,5.28,164.71,164.64,0.14216157]
[1749618173805,5.28,164.71,164.65,10.35148936]
[1749618174005,5.28,164.71,164.66,24.74]
[1749618174615,5.28,164.71,164.66,35.09148936]
[1749618175333,5.28,164.71,164.66,24.74]
[1749618175531,5.28,164.71,164.67,29.14329979]
[1749618176120,5.28,164.71,164.67,18.64964886]
[1749618177128,5.28,164.71,164.67,29.00113822]
[1749618177628,5.28,164.71,164.69,18.64964886]
[1749618177838,33.829,164.77,164.69,18.64964886]
[1749618179324,26.0,164.77,164.7,0.14216157]
[1749618179831,26.0,164.77,164.71,18.64964886]
[1749618181032,5.28,164.78,164.71,29.00113822]
[1749618182219,5.28,164.78,164.71,18.64964886]
[1749618182418,5.28,164.78,164.71,29.00113822]
[1749618182823,5.28,164.78,164.72,0.14216157]
[1749618183020,5.28,164.78,164.73,29.00113822]
[1749618183543,5.28,164.78,164.74,24.72]
[1749618183731,5.28,164.85,164.75,29.00113822]
[1749618183932,26.0,164.82,164.77,18.64964886]
[1749618184132,5.28,164.85,164.77,18.64964886]
[1749618184531,26.0,164.84,164.77,18.64964886]
[1749618185442,26.0,164.84,164.75,18.64964886]
[1749618185925,26.0,164.84,164.74,24.72]
[1749618187944,0.14216157,164.83,164.74,24.72]
[1749618188145,26.0,164.82,164.74,24.72]
[1749618192324,26.0,164.82,164.73,18.64964886]
[1749618194350,0.14216157,164.81,164.7,10.35148936]
[1749618194540,0.14216157,164.81,164.71,43.34964886]
[1749618194724,26.0,164.77,164.69,8.60202727]
[1749618195750,26.0,164.77,164.69,18.64964886]
[1749618196149,26.0,164.77,164.69,29.00113822]
[1749618196328,26.0,164.77,164.7,0.14216157]
[1749618196537,26.0,164.77,164.71,10.35148936]
[1749618196742,26.0,164.77,164.69,29.00113822]
[1749618196941,26.0,164.77,164.69,18.64964886]
[1749618198547,7.9731,164.8,164.69,18.64964886]
[1749618198548,26.0,164.75,164.69,18.64964886]
[1749618201256,26.0,164.75,164.68,1.6431]
[1749618201834,26.0,164.75,164.67,18.64964886]
[1749618203050,26.0,164.75,164.66,89.9]
[1749618203234,26.0,164.75,164.65,18.64964886]
[1749618204038,6.68706157,164.74,164.64,96.28048917]
[1749618204254,26.0,164.71,164.64,6.38048917]
[1749618204558,26.0,164.71,164.64,1.532]
[1749618204957,26.0,164.73,164.64,1.532]
[1749618205142,26.0,164.73,164.62,18.64964886]
[1749618205143,26.0,164.71,164.62,18.64964886]
[1749618205339,26.0,164.71,164.61,43.36964886]
[1749618205658,26.0,164.71,164.63,10.35148936]
[1749618206472,8.1821,164.74,164.67,18.64964886]
[1749618206645,13.061,164.78,164.68,10.35148936]
[1749618214286,13.061,164.78,164.67,30.55133822]
[1749618215771,26.0,164.75,164.67,1.5502]
[1749618215977,26.0,164.75,164.65,100.25148936]
[1749618216191,26.0,164.75,164.65,89.9]
[1749618216496,26.0,164.75,164.65,115.9]
[1749618216868,26.0,164.75,164.66,29.00113822]
[1749618220680,26.0,164.75,164.66,18.64964886]
[1749618220883,26.0,164.75,164.66,29.00113822]
[1749618221877,26.0,164.75,164.66,18.64964886]
[1749618222067,26.0,164.75,164.65,26.0]
[1749618222391,26.0,164.75,164.65,36.35148936]
[1749618222885,26.0,164.75,164.65,61.07148936]
[1749618223290,26.0,164.75,164.65,50.72]
[1749618223491,26.0,164.75,164.65,61.07148936]
[1749618225280,18.79181043,164.77,164.68,26.0]
[1749618225864,0.14216157,164.77,164.68,26.0]
[1749618226796,39.061,164.78,164.68,26.0]
[1749618226977,0.14216157,164.77,164.68,26.0]
[1749618228175,7.781,164.78,164.7,36.35148936]
[1749618228386,7.781,164.78,164.71,10.35148936]
[1749618228888,7.781,164.78,164.7,61.07148936]
[1749618231190,7.781,164.78,164.7,50.72]
[1749618233596,33.781,164.78,164.7,50.72]
[1749618233899,0.14216157,164.77,164.67,69.36964886]
[1749618234882,0.14216157,164.77,164.67,44.64964886]
[1749618235519,18.79181043,164.77,164.67,26.0]
[1749618237397,18.79181043,164.77,164.63,51.66704886]
[1749618237398,0.14216157,164.73,164.63,51.66704886]
[1749618237631,0.14216157,164.73,164.63,1.6326]
[1749618237632,18.79181043,164.73,164.63,1.6326]
[1749618237788,18.79181043,164.73,164.59,1.5645]
[1749618237789,18.79181043,164.71,164.59,1.5645]
[1749618237990,44.79181043,164.71,164.59,1.5645]
[1749618238191,26.0,164.68,164.59,1.5645]
[1749618238398,0.14216157,164.67,164.58,8.60202727]
[1749618238578,0.14216157,164.63,164.52,8.60202727]
[1749618238780,33.9934,164.64,164.52,13.44674953]
[1749618239000,26.0,164.67,164.55,36.35148936]
[1749618239316,0.14216157,164.66,164.58,26.0]
[1749618239604,11.6632,164.68,164.59,18.64964886]
[1749618239805,11.6632,164.68,164.59,29.00113822]
[1749618239987,11.6632,164.68,164.6,10.35148936]
[1749618240177,11.6632,164.68,164.62,26.0]
[1749618240384,5.28,164.68,164.61,43.55181043]
[1749618240585,6.1184,164.72,164.61,69.40964886]
[1749618240913,26.0,164.7,164.61,24.76]
[1749618241217,0.14216157,164.69,164.61,24.76]
[1749618241496,26.14216157,164.69,164.61,24.76]
[1749618241900,26.14216157,164.69,164.6,18.95351663]
[1749618242114,26.0,164.69,164.61,18.64964886]
[1749618242814,26.0,164.69,164.61,29.00113822]
[1749618243181,26.0,164.69,164.6,33.38202727]
[1749618243388,0.14216157,164.68,164.6,8.60202727]
[1749618243692,0.14216157,164.68,164.59,24.78]
[1749618244305,0.14216157,164.68,164.58,1.5599]
[1749618244504,26.0,164.65,164.58,1.5599]
[1749618246381,26.0,164.69,164.58,1.5599]
[1749618246595,26.0,164.65,164.58,1.5599]
[1749618249311,32.3109,164.65,164.56,8.60202727]
[1749618249518,0.14216157,164.64,164.56,8.60202727]
[1749618250298,32.3109,164.65,164.56,32.57897385]
[1749618250505,26.0,164.65,164.57,10.35148936]
[1749618251295,26.0,164.65,164.56,18.95351663]
[1749618251601,26.0,164.66,164.58,10.35148936]
[1749618252404,6.4089,164.69,164.6,10.35148936]
[1749618253003,6.4089,164.69,164.59,52.05167613]
[1749618253197,26.0,164.66,164.59,8.60202727]
[1749618253402,26.0,164.66,164.57,114.7]
[1749618253713,26.0,164.66,164.57,125.05148936]
[1749618255612,26.0,164.66,164.58,10.35148936]
[1749618255799,26.0,164.66,164.57,114.7]
[1749618256006,26.0,164.66,164.58,10.35148936]
[1749618256597,26.0,164.66,164.57,114.7]
[1749618256809,26.0,164.66,164.58,10.35148936]
[1749618257419,26.0,164.66,164.57,114.7]
[1749618257621,26.0,164.66,164.58,10.35148936]
[1749618258798,26.0,164.66,164.57,35.15148936]
[1749618259636,0.14216157,164.65,164.55,26.0]
[1749618260105,0.14216157,164.65,164.55,44.64964886]
[1749618260301,0.14216157,164.65,164.56,10.35148936]
[1749618260501,0.14216157,164.65,164.55,55.00113822]
[1749618261503,0.14216157,164.65,164.55,44.64964886]
[1749618261701,0.14216157,164.65,164.55,55.00113822]
[1749618263118,0.14216157,164.65,164.55,44.64964886]
[1749618263322,0.14216157,164.65,164.57,26.0]
[1749618263323,5.32,164.64,164.57,26.0]
[1749618263513,5.32,164.64,164.52,31.4102]
[1749618263514,8.33626157,164.63,164.52,31.4102]
[1749618263716,8.33626157,164.63,164.53,39.42461583]
[1749618264021,8.33626157,164.63,164.53,49.77610519]
[1749618265509,6.5777,164.63,164.55,10.35148936]
[1749618265723,26.0,164.66,164.56,10.35148936]
[1749618265914,0.14216157,164.65,164.56,10.35148936]
[1749618266223,0.14216157,164.65,164.57,11.94108936]
[1749618266436,5.32,164.66,164.58,26.0]
[1749618266737,5.32,164.66,164.58,36.35148936]
[1749618267038,5.32,164.66,164.59,26.0]
[1749618271418,5.32,164.66,164.6,26.0]
[1749618274910,5.32,164.66,164.61,14.39958387]
[1749618275106,5.32,164.66,164.6,26.0]
[1749618276210,5.32,164.66,164.61,10.35148936]
[1749618276716,5.32,164.66,164.62,10.35148936]
[1749618278125,5.32,164.66,164.65,26.0]
[1749618278323,5.32,164.73,164.65,26.0]
[1749618279234,5.32,164.73,164.65,36.35148936]
[1749618281037,5.32,164.73,164.65,26.0]
[1749618281433,5.32,164.73,164.65,36.35148936]
[1749618281748,5.32,164.73,164.66,10.35148936]
[1749618282545,5.32,164.73,164.67,36.35148936]
[1749618283047,5.32,164.73,164.67,26.0]
[1749618283348,5.32,164.73,164.67,36.35148936]
[1749618284221,5.32,164.73,164.68,10.35148936]
[1749618284421,5.32,164.73,164.68,26.0]
[1749618285628,5.32,164.73,164.65,69.42964886]
[1749618285840,5.32,164.73,164.65,44.64964886]
[1749618286048,5.32,164.73,164.65,55.00113822]
[1749618286350,5.32,164.73,164.65,29.00113822]
[1749618287554,5.32,164.73,164.67,26.0]
[1749618287736,5.32,164.73,164.69,26.0]
[1749618291767,26.0,164.7,164.65,29.00113822]
[1749618294251,26.0,164.7,164.64,89.9]
[1749618294439,26.0,164.7,164.64,114.66]
[1749618294638,26.0,164.7,164.64,125.01148936]
[1749618296238,26.0,164.7,164.64,35.11148936]
[1749618297259,26.0,164.7,164.65,10.35148936]
[1749618297441,26.0,164.7,164.64,24.76]
[1749618297759,26.0,164.7,164.65,10.35148936]
[1749618298240,26.0,164.7,164.64,35.11148936]
[1749618298746,26.0,164.7,164.65,10.35148936]
[1749618300039,26.0,164.7,164.66,18.64964886]
[1749618300337,26.0,164.7,164.64,24.76]
[1749618300537,26.0,164.7,164.61,8.60197685]
[1749618300736,26.0,164.7,164.6,29.00113822]
[1749618300969,26.0,164.7,164.6,43.40964886]
[1749618301551,26.0,164.7,164.6,53.76113822]
[1749618301874,26.0,164.7,164.6,43.40964886]
[1749618302242,0.14216157,164.69,164.59,1.5047]
[1749618302444,0.14216157,164.69,164.6,24.76]
[1749618302642,0.14216157,164.69,164.57,8.60197685]
[1749618302643,6.201,164.68,164.57,8.60197685]
[1749618302841,6.201,164.68,164.57,33.38197685]
[1749618302842,26.0,164.65,164.57,33.38197685]
[1749618303150,26.0,164.65,164.57,24.78]
[1749618303545,26.0,164.65,164.56,43.42964886]
[1749618304359,26.0,164.65,164.56,18.64964886]
[1749618304551,0.14216157,164.64,164.55,1.6399]
[1749618304748,0.14216157,164.64,164.55,26.4199]
[1749618307560,0.14216157,164.64,164.55,1.6399]
[1749618309560,26.0,164.6,164.51,4.88446796]
[1749618309763,26.0,164.6,164.53,27.77610519]
[1749618309964,26.0,164.6,164.54,29.00113822]
[1749618310364,26.0,164.6,164.55,18.64964886]
[1749618310544,26.0,164.6,164.56,17.62545722]
[1749618310746,26.0,164.6,164.55,29.00113822]
[1749618310961,6.045,164.63,164.56,18.64964886]
[1749618311151,6.9166,164.66,164.56,29.00113822]
[1749618312870,26.0,164.63,164.56,29.00113822]
[1749618313571,6.9166,164.66,164.58,10.35148936]
[1749618313879,6.9166,164.66,164.58,18.64964886]
[1749618314064,6.9166,164.66,164.55,0.14216157]
[1749618314275,6.9166,164.66,164.56,10.35148936]
[1749618314853,6.9166,164.66,164.57,10.35148936]
[1749618315777,32.9166,164.66,164.57,10.35148936]
[1749618316892,0.14216157,164.65,164.55,18.64964886]
[1749618317050,0.14216157,164.65,164.55,29.00113822]
[1749618317250,26.0,164.63,164.55,18.64964886]
[1749618318268,0.14216157,164.65,164.59,10.35148936]
[1749618318269,26.0,164.65,164.59,10.35148936]
[1749618318863,26.0,164.67,164.6,10.35148936]
[1749618319062,6.1114,164.68,164.61,10.35148936]
[1749618320563,6.1114,164.68,164.59,24.78]
[1749618320564,0.14216157,164.67,164.59,24.78]
[1749618320768,0.14216157,164.67,164.61,17.39958387]
[1749618321073,0.14216157,164.67,164.59,17.80905745]
[1749618321377,0.14216157,164.67,164.58,17.36680213]
[1749618321764,26.0,164.65,164.58,17.36680213]
[1749618322346,6.1114,164.68,164.6,10.35148936]
[1749618322567,6.1114,164.68,164.61,10.35148936]
[1749618323574,26.0,164.69,164.62,10.35148936]
[1749618324757,26.0,164.69,164.61,29.00113822]
[1749618325679,5.3,164.7,164.61,29.00113822]
[1749618325680,5.3,164.7,164.64,18.64964886]
[1749618325863,5.3,164.7,164.64,29.00113822]
[1749618326064,31.3,164.7,164.64,29.00113822]
[1749618326457,31.3,164.7,164.62,114.7]
[1749618326458,31.3,164.7,164.63,29.00113822]
[1749618327771,31.3,164.7,164.63,18.64964886]
[1749618328079,31.3,164.7,164.63,29.00113822]
[1749618328279,31.3,164.7,164.63,18.64964886]
[1749618328479,31.3,164.7,164.64,10.35148936]
[1749618328855,31.3,164.7,164.65,10.35148936]
[1749618329058,5.3,164.7,164.65,10.35148936]
[1749618334069,5.3,164.7,164.67,29.00113822]
[1749618334274,26.0,164.73,164.68,10.35148936]
[1749618336583,26.0,164.73,164.69,10.35148936]
[1749618337369,33.9905,164.76,164.69,15.09837362]
[1749618337569,33.9905,164.76,164.69,10.35148936]
[1749618339860,33.9905,164.76,164.69,29.00113822]
[1749618340078,33.9905,164.76,164.68,10.35148936]
[1749618340471,26.0,164.73,164.62,1.5296]
[1749618340673,26.0,164.73,164.64,18.64964886]
[1749618341897,5.32,164.77,164.59,43.42964886]
[1749618341898,0.14216157,164.7,164.59,43.42964886]
[1749618342068,0.14216157,164.7,164.59,79.78113822]
[1749618342275,0.14216157,164.7,164.59,29.00113822]
[1749618342776,0.14216157,164.7,164.61,26.0]